Cogmind - Beta 10.2 @@@ ROGUE MODE // 2021.05.11 @ 13:07:19 Player: Teratos Result: Destroyed by as-86443 with Assembled Heavy Rifle Performance ------------- Evolutions (0) 0 Regions Visited (2) 400 Robots Destroyed (18) 90 Value Destroyed (245) 245 Prototype IDs (0) 0 Alien Tech Used (0) 0 Bonus (0) 0 TOTAL SCORE: 735 Bonus ------- None Cogmind --------- Core Integrity 0/250 Matter 185/300 Energy 99/100 System Corruption 5% Temperature Cool (0) Movement Core (50) Location -10/Mines Parts ------- > --- POWER (1) -------- (None) > --- PROPULSION (2) --- (None) > --- UTILITY (2) ------ Improved Heat Sink > --- WEAPON (2) ------- (None) > --- INVENTORY (4) ---- Aluminum Leg Peak State ------------ > --- POWER ------------ Ion Engine > --- PROPULSION ------- Light Treads Aluminum Leg > --- UTILITY ---------- Improved Heat Sink Sensor Array > --- WEAPON ----------- Light Cannon Light Cannon > --- INVENTORY -------- Light Ion Engine Light Assault Rifle [Rating: 9] Favorites ----------- Power Ion Engine Engine Ion Engine Propulsion Aluminum Leg Treads Light Treads Leg Aluminum Leg Flight Unit Flight Unit Utility Improved Heat Sink Device Improved Heat Sink Processor Targeting Computer Weapon Light Cannon Energy Gun Small Laser Ballistic Gun Light Assault Rifle Ballistic Cannon Light Cannon Build | -11 -10 -10 ------- Run | Scr Mat Min Slots Evolved . | . . . Power . | . . . Propulsion . | . . . Utility . | . . . Weapon . | . . . Parts Attached 23 | 4 17 2 Power 3 | 1 1 1 Engine 3 | 1 1 1 Core . | . . . Reactor . | . . . Propulsion 8 | 1 7 . Treads 4 | 1 3 . Leg 3 | . 3 . Wheel . | . . . Hover . | . . . Flight 1 | . 1 . Utility 3 | . 3 . Device 2 | . 2 . Storage . | . . . Processor 1 | . 1 . Hackware . | . . . Protection . | . . . Artifact . | . . . Weapon 9 | 2 6 1 Energy Gun 2 | . 2 . Energy Cannon . | . . . Ballistic Gun 4 | 2 1 1 Ballistic Cannon 3 | . 3 . Launcher . | . . . Special Weapon . | . . . Impact Weapon . | . . . Slashing Weapon . | . . . Piercing Weapon . | . . . Special Melee Weapon . | . . . Unidentified Prototypes . | . . . Parts Lost 9 | . 1 8 Power 2 | . . 2 Propulsion 2 | . . 2 Utility 2 | . 1 1 Weapon 3 | . . 3 Highest Loss Streak 7 | . 1 7 Average Slot Usage (%) 88 | . 87 91 Engine 13 | . 14 9 Treads 6 | . 7 . Leg 17 | . 15 27 Device 17 | . 18 14 Processor 4 | . 3 12 Energy Gun 1 | . 2 . Ballistic Gun 5 | . 6 . Ballistic Cannon 20 | . 19 25 Naked Turns . | . . . Heaviest Build 13 | 5 13 12 Greatest Support 20 | 20 20 20 Greatest Overweight (x) 1 | . 1 . Average Overweight (x) . | . . . Largest Inventory Capacity 4 | 4 4 4 Average Capacity 4 | 4 4 4 Most Carried 3 | . 3 3 Average Carried 2 | . 2 2 Final Capacity 4 | 4 4 4 Final Carried 3 | . 3 1 Class Distribution -------------------- 88% | Mutant 11% | Scavenger-Mutant Dominant Class ---------------- Mutant | -10/Materials Mutant | -10/Mines Resources | -11 -10 -10 ----------- Run | Scr Mat Min Matter Collected 596 | . 547 49 Remotely . | . . . Salvage Created 449 | . 380 69 Parts 38 | . 32 6 Haulers Intercepted 1 | . 1 . Recyclers Shooed . | . . . Parts Field Recycled . | . . . Retrieved Matter . | . . . Parts Self-Destructed . | . . . Prevented . | . . . Kills | -11 -10 -10 ------- Run | Scr Mat Min Combat Hostiles Destroyed 14 | . 6 8 Guns 4 | . 4 . Cannons 10 | . 2 8 Classes Destroyed 10 | . 9 1 Worker 2 | . 2 . Builder 1 | . 1 . Tunneler 1 | . 1 . Hauler 1 | . 1 . Recycler 1 | . 1 . Operator 1 | . 1 . Watcher 2 | . 2 . Swarmer 6 | . 3 3 Grunt 3 | . 3 . Assembled 5 | . . 5 Best Kill Streak 5 | . 3 5 Combat Bots Only 5 | . 3 5 Max Kills in Single Turn 1 | . 1 1 Gunslinging . | . . . Exploded . | . . . Melee . | . . . Uniques/NPCs Destroyed . | . . . Combat | -11 -10 -10 -------- Run | Scr Mat Min Damage Taken 948 | . 253 695 Core 250 | . 42 208 Absorbed by Shields . | . . . Core Remaining (%) 100 | 100 . . Volleys Fired 71 | . 53 18 Largest 2 | . 2 2 Hottest 75 | . 75 70 Shots Fired 125 | . 92 33 Gun 44 | . 41 3 Cannon 81 | . 51 30 Launcher . | . . . Special . | . . . Kinetic 106 | . 73 33 Thermal 19 | . 19 . Explosive . | . . . Electromagnetic . | . . . Robot Hit Streak 9 | . 9 8 Robot Miss Streak 7 | . 6 7 Penetration Max . | . . . Secondary Targets . | . . . Shots Hit Robots 69 | . 49 20 Core Hits 39 | . 24 15 Critical Hits . | . . . Critical Kills . | . . . Critical Parts Destroyed . | . . . Melee Attacks . | . . . Impact . | . . . Slashing . | . . . Piercing . | . . . Sneak Attacks . | . . . Combat Hostiles . | . . . Follow-up Attacks . | . . . Damage Inflicted 1097 | . 740 357 Guns 338 | . 322 16 Cannons 735 | . 396 339 Explosions . | . . . Melee . | . . . Ramming 24 | . 22 2 Kinetic 878 | . 523 355 Thermal 195 | . 195 . Explosive . | . . . Electromagnetic . | . . . Impact . | . . . Slashing . | . . . Piercing . | . . . Highest Corruption 5 | . . 5 Average Corruption 3 | . . 3 Corruption Purged . | . . . Effects 3 | . . 3 Message Errors 1 | . . 1 Targeting Errors 1 | . . 1 Weapon Failures 1 | . . 1 Overload Shots . | . . . Overflow Damage 53 | . 7 46 Projectiles 53 | . 7 46 Explosions . | . . . Melee . | . . . Knockbacks 20 | . 9 11 Impact . | . . . Kinetic 16 | . 9 7 Secondary 4 | . . 4 Self-Inflicted Damage 4 | . 3 1 Shots . | . . . Rammed 7 | . 4 3 Targets Rammed 10 | . 7 3 Kicked 3 | . 3 . Crushed . | . . . Highest Temperature 60 | . 60 13 Average Temperature 21 | . 23 7 Received Heat Transfer 180 | . 60 120 Siege Activations . | . . . Robots Corrupted . | . . . Combat Hostiles . | . . . Parts Fried . | . . . Impact Corruptions 1 | . . 1 Robots Melted . | . . . Combat Hostiles . | . . . Parts Melted . | . . . Heat Transferred 473 | . 473 . Parts Sabotaged . | . . . Parts Stolen . | . . . Parts Stripped . | . . . Power Chain Reactions . | . . . Missiles Intercepted . | . . . Alert | -11 -10 -10 ------- Run | Scr Mat Min Peak Influence 219 | . 219 101 Initial 31 | . . 31 Average 86 | . 91 88 Maximum Alert Level 1 | . 1 . Low Security (%) 92 | 100 91 100 Level 1 7 | . 8 . Level 2 . | . . . Level 3 . | . . . Level 4 . | . . . Level 5 . | . . . High Security . | . . . Max Security . | . . . Squads Dispatched 1 | . 1 . Investigation . | . . . Extermination . | . . . Reinforcement 1 | . 1 . Assault . | . . . Garrison . | . . . Intercept . | . . . Construction Impeded . | . . . Haulers Reinforced . | . . . Stealth | -11 -10 -10 --------- Run | Scr Mat Min Distress Signals 1 | . . 1 Communications Jammed . | . . . Distress Signals . | . . . Times Spotted 44 | . 18 26 Peak Tracking Total 19 | . 4 19 Tactical Retreats 3 | . . 3 Traps | -11 -10 -10 ------- Run | Scr Mat Min Traps Triggered 3 | . 3 . Indirectly . | . . . Trap Hack Attempts . | . . . Triggered . | . . . Disarmed . | . . . Reprogrammed . | . . . Reused . | . . . Traps Extracted . | . . . Installed . | . . . Triggered . | . . . Machines | -11 -10 -10 ---------- Run | Scr Mat Min Machines Disabled . | . . . Max in Single Turn . | . . . Machines Sabotaged . | . . . Garrisons Compromised . | . . . Overloaded Fab Kills . | . . . Fab Network Shutdowns . | . . . Hacking | -11 -10 -10 --------- Run | Scr Mat Min Machines Accessed . | . . . Terminals . | . . . Fabricators . | . . . Repair Stations . | . . . Recycling Units . | . . . Scanalyzers . | . . . Garrison Access . | . . . Total Hacks . | . . . Successful . | . . . Failed . | . . . Catastrophic . | . . . Database Lockouts . | . . . Manual . | . . . Terminals . | . . . Fabricators . | . . . Repair Stations . | . . . Recycling Units . | . . . Scanalyzers . | . . . Garrison Access . | . . . Terminal Hacks . | . . . Fabricator Hacks . | . . . Repair Station Hacks . | . . . Recycling Unit Hacks . | . . . Scanalyzer . | . . . Garrison Access Hacks . | . . . Unauthorized Hacks . | . . . Terminals . | . . . Fabricators . | . . . Repair Stations . | . . . Recycling Units . | . . . Scanalyzers . | . . . Garrison Access . | . . . Data Cores Recovered . | . . . Used . | . . . Hacking Detections . | . . . Full Trace Events . | . . . Feedback Events . | . . . Feedback Blocked . | . . . Robot Schematics Acquired . | . . . Robots Built . | . . . Matter . | . . . Time . | . . . Total Robot Build Rating . | . . . Part Schematics Acquired . | . . . Parts Built . | . . . Matter . | . . . Time . | . . . Total Part Build Rating . | . . . Parts Repaired . | . . . Time . | . . . Parts Recycled . | . . . Recycled Matter . | . . . Retrieved Matter . | . . . Retrieved Components . | . . . Parts Scanalyzed . | . . . Part Schematics Acquired . | . . . Parts Damaged . | . . . Bothacking | -11 -10 -10 ------------ Run | Scr Mat Min Used RIF Installer . | . . . Robots Hacked . | . . . Non-combat . | . . . Combat . | . . . Robot Hacks Applied . | . . . Relay Couplers Released . | . . . Robots Rewired . | . . . Allies Hacked . | . . . Hacks Repelled . | . . . Allies | -11 -10 -10 -------- Run | Scr Mat Min Total Allies . | . . . Largest Group . | . . . Highest-Rated Group . | . . . Highest-Rated Ally . | . . . Total Orders . | . . . Ally Attacks . | . . . Total Damage . | . . . Kills . | . . . Allies Corrupted . | . . . Allies Melted . | . . . Intel | -11 -10 -10 ------- Run | Scr Mat Min Robot Analysis Total . | . . . Derelict Logs Recovered . | . . . Drone Launches . | . . . Drone Recoveries . | . . . Exploration | -11 -10 -10 ------------- Run | Scr Mat Min Turns Passed 998 | 41 785 172 Spaces Moved 482 | 23 356 103 Core 15 | 1 . 14 Treads 158 | 22 136 . Legs 302 | . 213 89 Wheels . | . . . Hover . | . . . Flight 7 | . 7 . Fastest Speed 50 | 50 140 50 Average Speed 144 | 155 153 110 Slowest Speed 160 | 160 160 120 Overloaded Moves . | . . . Propulsion Burnouts . | . . . Robots Hopped . | . . . Cave-ins Triggered . | . . . Exploration Rate (%) 23 | 2 46 22 Regions Visited 2 Branch Regions 1 Pre-discovered Areas . | . . . Known Exits Taken . | . . . Unknown Exits Taken 2 | 1 1 . Scrap Searched . | . . . Spaces Dug . | . . . Terrain Destroyed . | . . . Melee . | . . . Projectile . | . . . AOE . | . . . Terrain Rammed . | . . . Walls Destroyed . | . . . Machines Disabled . | . . . Actions | -11 -10 -10 --------- Run | Scr Mat Min Total 652 | 26 499 127 Wait 58 | . 57 1 Move 480 | 22 355 103 Hop . | . . . Pick Up . | . . . Fast Attach 18 | 4 14 . Attach 2 | . . 2 Detach . | . . . Swap 3 | . 3 . Drop 10 | . 10 . Fire 71 | . 53 18 Melee . | . . . Ram 1 | . . 1 Kick 9 | . 7 2 Crush . | . . . Escape Stasis . | . . . Rewire . | . . . Trap . | . . . Miscellaneous . | . . . Route ------- -11/Scrapyard -10/Materials (discovered 2 exits: [*Mat] / [*Min]) -10/Mines History --------- Turn | Location | Event 19 | -11/Scrapyard | Discovered new exit (range 15) 42 | -11/Scrapyard | Entered Materials 318 | -10/Materials | Build established: Mutant 567 | -10/Materials | Discovered new exit (range 16) 814 | -10/Materials | Discovered new exit (range 10) 827 | -10/Materials | Entered Mines 917 | -10/Mines | Assembled infested the area 990 | -10/Mines | Core integrity fell below 50% 996 | -10/Mines | Core integrity fell below 20% 999 | -10/Mines | Destroyed by as-86443 with Assembled Heavy Rifle Last Messages --------------- 00964_ Acquired 16 matter. 00972_ Targeting Computer destroyed. 00972_ System corrupted by crushing effect (+3). 00973_ as-70370 knocked back. 00973_ Destroyed Asb. Hover Unit. 00973_ as-40104 system corrupted by crushing effect. 00973_ as-40104 destroyed. 00976_ Lgt. Cannon destroyed. 00976_ as-73282 destroyed. 00983_ as-36722 knocked back. 00983_ Lgt. Cannon destroyed. 00985_ OG%C72GBUEF9Q2ZBQC&|N23JV> 00986_ Lgt. Assault Rifle destroyed. 00988_ Lgt. Ion Engine destroyed. 00989_ Slammed into as-36722. 00989_ Destabilizing: Core damaged (-12). 00989_ Aluminum Leg destroyed. 00990_ Slammed into as-36722. 00991_ Aluminum Leg destroyed. 00991_ Slammed into as-36722. Map ----- +----------------------------------------------------+ | ???????????????????????????????????????? | | ???????????????????????????????????????? | | ???????????????????????????????????????? | | ???????????????????????????????????????? | | ????????????????????????????????????? | | ????????????????????????????????????? % | | ????????????????????????????????????? | | ????????????????????????????????????# | | ???????????????????????????????????? | | ???????????????????????????????????? | | ????????????????????????????????????? | | ????????????????????????????????????? | | ????????????????????????????????????? | | ????????????????????????????????????? | | ????????????????????????????????????? | | ????????????????##??????????????????? | | ????????????????# ???????????????????# | | ????????????????# #??????????????????# | | ???####?????????# #??????????????##### | | ??## ##????????# #??????????????# | | ??# #????????# #??????????????# ### | | ??# #????????# #??????????????# #? | | ???# ##?#####?# #####??????????# #? | | ???## ### ### ##?????????# ## | | ????## ######????# #### | | ?????### @ ##???# #???# | | ???????## a %##### #???? | | ???????## a % #???? | | ??????## a ###### #???? | | ??# ## ##????# #???? | | ?# #?????# #???? | | ?# ## ## ##?????# #???? | | ?## ### #####??????# #???? | | ??### #?#*#??????????# #???? | | ????## ## #?#%############ #???? | | ?????## #?## ##?#*[ #???? | | ??????###???######??################???? | | ???????????????????????????????????????? | | ???????????????????????????????????????? | | | | | | | | | | | | | | | | | | | | | | | +----------------------------------------------------+ Best States ------------- Heat Dissipation 39 Energy Generation 10 Energy Capacity 250 Matter Stores 300 Matter Capacity 300 Sight Range 16 Robot Scan Range 10 Terrain Scan Density 10 Evasion (%) 40 Targeting Accuracy 5 Recoil Reduction 1 Item Schematics ----------------- None Robot Schematics ------------------ None Fabricated ------------ Nothing Alien Tech Used ----------------- None Achievements -------------- None Challenges ------------ None Game ------ Seed TargetMasterHumpback Manual? 0 Play Time 00:08:33 Cumulative 56.9 hours Start 2021.05.11 @ 13:00:14 End 2021.05.11 @ 13:07:19 Sessions 1 Manual Loads 0 Difficulty Rogue Special Mode None Game No. 128 Rogue 128 Adventurer 0 Explorer 0 Win Type - Total 0 Types 0/0/0/0/0/0/0/0/0 Lore% 25 Gallery% 32 Achievement% 26 Wizard Run 0 Options --------- ASCII 0 Keyboard 0 Movement Numpad Keybinds 0 Fullscreen 1 Font 12/Smallcaps Map View 83x54 Tactical HUD 1 Map Filters NONE Filters NONE Steam 1 RUN: f24c39d9-e862-4893-a188-40ddf957b3ce